[Event "ESP-chT 2nd Division 2019"]
[Site "Linares"]
[Date "2019.08.22"]
[Round "6.35"]
[White "Roque Sola, Gisela"]
[Black "Arce Calva, Elvira"]
[Result "1-0"]
[ECO "A38"]
[WhiteElo "2048"]
[BlackElo "1838"]
[Annotator "NA"]
[PlyCount "97"]
[EventDate "2019.08.19"]
[EventType "team-tourn"]
[EventCountry "ESP"]
[SourceTitle "playchess.com"]
[Source "ChessBase"]
[SourceQuality "1"]
[TimeControl "5400+30"]

1. c4 {[%emt 0:00:00]} c5 {[%emt 0:00:00]} 2. Nc3 {[%emt 0:00:00]} Nc6 {[%emt 0:00:00]} 3. Nf3 {[%emt 0:00:00]} Nf6 {[%emt 0:01:06]} 4. g3 {[%emt 0:00:02]} g6 {[%emt 0:00:15]} 5. Bg2 {[%emt 0:00:23]} Bg7 {[%emt 0:00:28]} 6. O-O {[%emt 0:00:40]} O-O {[%emt 0:00:31]} 7. a3 {[%emt 0:00:36]} Ne8 {[%emt 0:05:05]} 8. Rb1 {[%emt 0:01:34]} Nd6 {[%emt 0:08:23]} 9. d3 {[%emt 0:00:57]} Rb8 {[%emt 0:03:10]} 10. Bf4 {[%emt 0:10:52]} e5 {[%emt 0:09:50]} 11. Bg5 {[%emt 0:04:59]} f6 {[%emt 0:04:41]} 12. Be3 {[%emt 0:00:05]} b6 {[%emt 0:01:18]} 13. b4 {[%emt 0:00:51]} cxb4 {[%emt 0:02:57]} 14. axb4 {[%emt 0:00:07]} Nf5 {[%emt 0:04:50]} 15. Bc1 {[%emt 0:04:23]} Bb7 {[%emt 0:07:25]} 16. Nd2 {[%emt 0:00:20]} Ncd4 {[%emt 0:04:01]} 17. Nde4 {[%emt 0:07:01]} d6 {[%emt 0:10:42]} 18. Ba3 {[%emt 0:05:00]} Ne6 {[%emt 0:06:46]} 19. e3 {[%emt 0:17:51]} Nh6 {[%emt 0:05:52]} 20. Qb3 {[%emt 0:04:46]} Qd7 {[%emt 0:05:28]} 21. Nb5 {[%emt 0:02:57]} f5 {[%emt 0:02:12]} 22. Nd2 {[%emt 0:07:17]} Bxg2 {[%emt 0:01:55]} 23. Kxg2 {[%emt 0:00:02]} f4 {[%emt 0:00:32]} 24. Rbe1 {[%emt 0:06:02]} Ng5 {[%emt 0:03:41]} 25. g4 {[%emt 0:11:42]} Qxg4+ {[%emt 0:00:53]} 26. Kh1 {[%emt 0:00:04]} f3 {[%emt 0:06:56]} 27. Rg1 Qh4 {[%emt 0:00:25]} 28. Rg3 {[%emt 0:02:50]} Ng4 {[%emt 0:02:00]} 29. Rxg4 {[%emt 0:01:43]} Qxg4 {[%emt 0:00:02]} 30. Rg1 {[%emt 0:00:05]} Qh4 {[%emt 0:01:24]} 31. Rg3 {[%emt 0:00:05]} Kh8 {[%emt 0:02:05]} 32. Nxd6 {[%emt 0:00:20]} Rbd8 {[%emt 0:00:31]} 33. c5 {[%emt 0:02:38]} bxc5 {[%emt 0:00:25]} 34. bxc5 {[%emt 0:00:04]} Rb8 {[%emt 0:00:36]} 35. Qc2 {[%emt 0:00:29]} Nh3 {[%emt 0:00:28]} 36. Nxf3 {[%emt 0:01:16]} Nxf2+ {[%emt 0:00:32]} 37. Qxf2 {[%emt 0:00:06]} Bh6 {[%emt 0:00:32]} 38. Qa2 {[%emt 0:04:48]} Qa4 {[%emt 0:00:23]} 39. Nc4 {[%emt 0:01:48]} Qd1+ {[%emt 0:00:18]} 40. Kg2 {[%emt 0:00:35]} Rb1 {[%emt 0:00:25]} 41. Ncd2 {[%emt 0:00:31]} Qh1+ {[%emt 0:00:48]} 42. Kh3 {[%emt 0:00:04]} Rd1 {[%emt 0:00:29]} 43. Bb2 {[%emt 0:01:25]} Bg7 {[%emt 0:00:27]} 44. Bc3 {[%emt 0:01:25]} Rf5 {[%emt 0:00:30]} 45. c6 {[%emt 0:01:20]} Rf1 {[%emt 0:00:38]} 46. c7 {[%emt 0:00:17]} R1xf3 {[%emt 0:00:30]} 47. Nxf3 {[%emt 0:00:39]} Qf1+ {[%emt 0:00:27]} 48. Qg2 {[%emt 0:00:22]} Qxg2+ {[%emt 0:00:35]} 49. Kxg2 {[%emt 0:00:39]} 1-0

[Event "ESP-chT 2nd Division 2019"]
[Site "Linares"]
[Date "2019.08.22"]
[Round "6.36"]
[White "Cruz Lledo, Pablo"]
[Black "Garcia Cuenca, Victor"]
[Result "1/2-1/2"]
[ECO "A43"]
[WhiteElo "2445"]
[BlackElo "2359"]
[Annotator "NA"]
[PlyCount "63"]
[EventDate "2019.08.19"]
[EventType "team-tourn"]
[EventCountry "ESP"]
[SourceTitle "playchess.com"]
[Source "ChessBase"]
[SourceQuality "1"]
[TimeControl "5400+30"]

1. d4 {[%emt 0:00:00]} Nf6 {[%emt 0:00:00]} 2. Nf3 {[%emt 0:00:00]} c5 {[%emt 0:00:00]} 3. d5 {[%emt 0:00:00]} b5 {[%emt 0:00:00]} 4. a4 {[%emt 0:00:00]} b4 {[%emt 0:00:00]} 5. c4 {[%emt 0:00:28]} g6 {[%emt 0:00:52]} 6. Nbd2 {[%emt 0:00:24]} d6 {[%emt 0:02:00]} 7. g3 {[%emt 0:00:11]} e5 {[%emt 0:07:19]} 8. dxe6 {[%emt 0:01:47]} fxe6 {[%emt 0:00:13]} 9. Bg2 {[%emt 0:00:15]} Bb7 {[%emt 0:00:14]} 10. O-O {[%emt 0:00:26]} Qe7 {[%emt 0:04:18]} 11. e4 {[%emt 0:02:56]} e5 {[%emt 0:00:08]} 12. Ne1 {[%emt 0:02:52]} Bh6 {[%emt 0:06:23]} 13. Nb3 {[%emt 0:05:55]} Bxc1 {[%emt 0:00:37]} 14. Rxc1 {[%emt 0:00:15]} Nc6 {[%emt 0:04:11]} 15. f3 {[%emt 0:04:40]} O-O {[%emt 0:03:52]} 16. Bh3 {[%emt 0:08:07]} Rf7 {[%emt 0:15:35]} 17. Rc2 {[%emt 0:01:33]} Raf8 {[%emt 0:01:04]} 18. Rcf2 {[%emt 0:01:00]} Ba6 {[%emt 0:07:08]} 19. Qc2 {[%emt 0:00:56]} Nd7 {[%emt 0:01:22]} 20. Bxd7 {[%emt 0:00:43]} Qxd7 {[%emt 0:00:01]} 21. Ng2 {[%emt 0:00:23]} Nd4 {[%emt 0:04:15]} 22. Nxd4 {[%emt 0:00:11]} cxd4 {[%emt 0:00:01]} 23. b3 {[%emt 0:01:31]} Qc6 {[%emt 0:00:56]} 24. Ne1 {[%emt 0:07:56]} Bc8 {[%emt 0:00:15]} 25. Kg2 {[%emt 0:01:43]} a5 {[%emt 0:00:22]} 26. Qd2 {[%emt 0:03:27]} Be6 {[%emt 0:00:34]} 27. Nd3 {[%emt 0:00:57]} Qc8 {[%emt 0:00:40]} 28. Qh6 {[%emt 0:00:36]} Qc6 {[%emt 0:00:08]} 29. Nb2 {[%emt 0:01:53]} Bg4 {[%emt 0:04:20]} 30. Qh4 {[%emt 0:05:00]} Be6 {[%emt 0:00:08]} 31. Qh6 {[%emt 0:00:33]} Bg4 {[%emt 0:00:02]} 32. Qh4 {[%emt 0:01:00]} 1/2-1/2

[Event "ESP-chT 2nd Division 2019"]
[Site "Linares"]
[Date "2019.08.22"]
[Round "6.37"]
[White "Sanchez Gonzalez, Sergio"]
[Black "Garcia Molla, Victor"]
[Result "0-1"]
[ECO "A14"]
[WhiteElo "2299"]
[BlackElo "2408"]
[Annotator "NA"]
[PlyCount "60"]
[EventDate "2019.08.19"]
[EventType "team-tourn"]
[EventCountry "ESP"]
[SourceTitle "playchess.com"]
[Source "ChessBase"]
[SourceQuality "1"]
[TimeControl "5400+30"]

1. c4 {[%emt 0:00:00]} c5 {[%emt 0:00:17]} 2. Nc3 {[%emt 0:00:46]} Nc6 {[%emt 0:00:40]} 3. Nf3 {[%emt 0:00:06]} Nf6 {[%emt 0:00:57]} 4. g3 {[%emt 0:00:05]} e6 {[%emt 0:03:21]} 5. Bg2 {[%emt 0:00:11]} d5 {[%emt 0:00:10]} 6. cxd5 {[%emt 0:00:24]} Nxd5 {[%emt 0:00:06]} 7. O-O {[%emt 0:00:24]} Be7 {[%emt 0:02:54]} 8. d4 {[%emt 0:00:37]} O-O {[%emt 0:00:10]} 9. Nxd5 {[%emt 0:01:25]} exd5 {[%emt 0:00:10]} 10. dxc5 {[%emt 0:00:46]} Bxc5 {[%emt 0:00:08]} 11. Bg5 {[%emt 0:01:18]} f6 {[%emt 0:03:31]} 12. Bf4 {[%emt 0:00:37]} Be6 {[%emt 0:01:22]} 13. Nd2 {[%emt 0:09:54]} Bb6 {[%emt 0:04:28]} 14. Nb3 {[%emt 0:00:21]} d4 {[%emt 0:01:35]} 15. Rc1 {[%emt 0:00:20]} Bd5 {[%emt 0:00:43]} 16. Bh3 {[%emt 0:03:33]} Qe7 {[%emt 0:01:21]} 17. Qd3 {[%emt 0:08:31]} Ne5 {[%emt 0:18:37]} 18. Bxe5 {[%emt 0:09:07]} fxe5 {[%emt 0:00:20]} 19. e3 {[%emt 0:01:13]} e4 {[%emt 0:09:56]} 20. Qb5 {[%emt 0:02:17]} Rad8 {[%emt 0:00:16]} 21. Nxd4 {[%emt 0:08:15]} Bxd4 {[%emt 0:00:11]} 22. Rcd1 {[%emt 0:05:41]} a6 {[%emt 0:04:25]} 23. Qa5 {[%emt 0:02:16]} b6 {[%emt 0:01:00]} 24. Qxa6 {[%emt 0:00:06]} Bc5 {[%emt 0:02:11]} 25. b4 {[%emt 0:00:12]} Bxb4 {[%emt 0:01:23]} 26. Rxd5 {[%emt 0:00:05]} Rxd5 {[%emt 0:00:28]} 27. Qc4 {[%emt 0:00:04]} Rfd8 {[%emt 0:04:25]} 28. Rd1 {[%emt 0:00:14]} b5 {[%emt 0:00:12]} 29. Qb3 {[%emt 0:00:35]} Qf7 {[%emt 0:00:31]} 30. Rxd5 {[%emt 0:00:26]} Rxd5 {[%emt 0:00:06]} 0-1

[Event "ESP-chT 2nd Division 2019"]
[Site "Linares"]
[Date "2019.08.22"]
[Round "6.38"]
[White "Barbera Estelles, Rosendo"]
[Black "Moreno Ibanez, Miguel"]
[Result "1-0"]
[ECO "B20"]
[WhiteElo "2176"]
[BlackElo "2272"]
[Annotator "NA"]
[PlyCount "121"]
[EventDate "2019.08.19"]
[EventType "team-tourn"]
[EventCountry "ESP"]
[SourceTitle "playchess.com"]
[Source "ChessBase"]
[SourceQuality "1"]
[TimeControl "5400+30"]

1. e4 {[%emt 0:00:01]} c5 {[%emt 0:00:01]} 2. Be2 {[%emt 0:01:10]} Nc6 {[%emt 0:01:19]} 3. f4 {[%emt 0:00:14]} d5 {[%emt 0:04:34]} 4. d3 {[%emt 0:00:13]} g6 {[%emt 0:01:35]} 5. Nf3 {[%emt 0:00:51]} Bg7 {[%emt 0:00:24]} 6. O-O {[%emt 0:00:56]} d4 {[%emt 0:02:22]} 7. Qe1 {[%emt 0:02:37]} Nf6 {[%emt 0:12:09]} 8. Nbd2 {[%emt 0:03:42]} Ng4 {[%emt 0:19:09]} 9. Nb3 {[%emt 0:08:56]} b6 {[%emt 0:09:21]} 10. c3 {[%emt 0:07:18]} Ba6 {[%emt 0:05:09]} 11. h3 {[%emt 0:01:27]} Nf6 {[%emt 0:12:39]} 12. cxd4 {[%emt 0:02:12]} cxd4 {[%emt 0:00:16]} 13. Bd2 {[%emt 0:09:52]} O-O {[%emt 0:02:40]} 14. Qf2 {[%emt 0:03:55]} Nd7 {[%emt 0:05:52]} 15. Rac1 {[%emt 0:02:00]} Rc8 {[%emt 0:00:58]} 16. e5 {[%emt 0:02:05]} f6 {[%emt 0:03:42]} 17. Nfxd4 {[%emt 0:10:58]} Nxd4 {[%emt 0:00:55]} 18. Qxd4 {[%emt 0:00:54]} Nc5 {[%emt 0:07:41]} 19. Qxd8 {[%emt 0:00:25]} Rfxd8 {[%emt 0:00:10]} 20. Nxc5 {[%emt 0:02:00]} bxc5 {[%emt 0:00:21]} 21. Ba5 {[%emt 0:02:43]} Rd5 {[%emt 0:03:45]} 22. Bg4 {[%emt 0:07:20]} f5 {[%emt 0:02:37]} 23. Bf3 {[%emt 0:00:46]} Rd4 {[%emt 0:00:54]} 24. Bc3 {[%emt 0:05:03]} Rd7 {[%emt 0:01:19]} 25. Rfd1 {[%emt 0:02:11]} Bh6 {[%emt 0:00:55]} 26. g3 {[%emt 0:02:21]} g5 {[%emt 0:00:10]} 27. e6 {[%emt 0:00:48]} Rxd3 {[%emt 0:01:23]} 28. Rxd3 {[%emt 0:00:50]} Bxd3 {[%emt 0:00:02]} 29. Be5 {[%emt 0:00:25]} gxf4 {[%emt 0:00:20]} 30. gxf4 {[%emt 0:00:38]} Bg7 {[%emt 0:00:04]} 31. Rc3 {[%emt 0:02:20]} Bxe5 {[%emt 0:02:01]} 32. fxe5 {[%emt 0:00:11]} c4 {[%emt 0:00:41]} 33. Kf2 {[%emt 0:00:27]} Rc5 {[%emt 0:00:17]} 34. b3 {[%emt 0:01:50]} Bb1 {[%emt 0:00:28]} 35. bxc4 {[%emt 0:00:35]} Bxa2 {[%emt 0:00:44]} 36. Bd5 {[%emt 0:00:20]} a5 {[%emt 0:00:27]} 37. Ke3 {[%emt 0:01:31]} a4 {[%emt 0:00:09]} 38. Kd4 {[%emt 0:00:27]} Rc8 {[%emt 0:00:52]} 39. Rg3+ {[%emt 0:01:53]} Kf8 {[%emt 0:00:09]} 40. Rf3 {[%emt 0:00:57]} Bb1 {[%emt 0:00:21]} 41. Rf1 {[%emt 0:00:38]} Rb8 {[%emt 0:00:45]} 42. Rf3 {[%emt 0:01:29]} Bc2 {[%emt 0:00:39]} 43. c5 {[%emt 0:00:48]} Ke8 {[%emt 0:00:37]} 44. Rg3 {[%emt 0:00:38]} Kd8 {[%emt 0:00:31]} 45. Rg8+ {[%emt 0:00:28]} Kc7 {[%emt 0:00:01]} 46. Rg7 {[%emt 0:00:13]} Kd8 {[%emt 0:00:59]} 47. Rxh7 {[%emt 0:01:29]} Bb3 {[%emt 0:00:31]} 48. Rh8+ {[%emt 0:05:40]} Kc7 {[%emt 0:00:03]} 49. Rxb8 {[%emt 0:04:28]} Kxb8 {[%emt 0:00:00]} 50. Bf3 {[%emt 0:00:23]} a3 {[%emt 0:01:25]} 51. Kc3 {[%emt 0:00:09]} Bxe6 {[%emt 0:00:31]} 52. h4 {[%emt 0:00:10]} Kc7 {[%emt 0:00:30]} 53. h5 {[%emt 0:00:14]} Bf7 {[%emt 0:00:32]} 54. h6 {[%emt 0:00:11]} Bg8 {[%emt 0:00:22]} 55. Bd5 {[%emt 0:00:22]} Bh7 {[%emt 0:00:37]} 56. Kb3 {[%emt 0:00:17]} f4 {[%emt 0:00:14]} 57. Kxa3 {[%emt 0:00:17]} Bf5 {[%emt 0:00:45]} 58. Kb4 {[%emt 0:00:27]} Kd7 {[%emt 0:00:31]} 59. Kc4 {[%emt 0:00:48]} Kc7 {[%emt 0:00:30]} 60. Kd4 {[%emt 0:00:16]} Bg6 {[%emt 0:00:31]} 61. Be4 {[%emt 0:00:20]} 1-0

[Event "ESP-chT 2nd Division 2019"]
[Site "Linares"]
[Date "2019.08.22"]
[Round "6.39"]
[White "Perez Gonzalez, Jose Manuel"]
[Black "Gonzalez Aguirre, Luis"]
[Result "1/2-1/2"]
[ECO "B12"]
[WhiteElo "2218"]
[BlackElo "2112"]
[Annotator "NA"]
[PlyCount "142"]
[EventDate "2019.08.19"]
[EventType "team-tourn"]
[EventCountry "ESP"]
[SourceTitle "playchess.com"]
[Source "ChessBase"]
[SourceQuality "1"]
[TimeControl "5400+30"]

1. e4 {[%emt 0:00:00]} c6 {[%emt 0:00:08]} 2. d4 {[%emt 0:00:00]} d5 {[%emt 0:00:10]} 3. e5 {[%emt 0:00:00]} Bf5 {[%emt 0:00:52]} 4. Nc3 {[%emt 0:00:02]} Qb6 {[%emt 0:03:20]} 5. Nf3 {[%emt 0:00:25]} e6 {[%emt 0:00:58]} 6. Be2 {[%emt 0:00:19]} Nd7 {[%emt 0:02:58]} 7. O-O {[%emt 0:00:20]} Ne7 {[%emt 0:01:28]} 8. b3 {[%emt 0:00:30]} h6 {[%emt 0:00:43]} 9. Na4 {[%emt 0:00:54]} Qd8 {[%emt 0:06:20]} 10. c4 {[%emt 0:00:34]} Bh7 {[%emt 0:10:53]} 11. Ba3 {[%emt 0:18:11]} Nf5 {[%emt 0:02:52]} 12. Bxf8 {[%emt 0:00:55]} Nxf8 {[%emt 0:01:48]} 13. c5 {[%emt 0:05:55]} Nd7 {[%emt 0:06:11]} 14. Rc1 {[%emt 0:01:16]} O-O {[%emt 0:02:23]} 15. Bd3 {[%emt 0:04:57]} Nh4 {[%emt 0:06:11]} 16. Bxh7+ {[%emt 0:03:28]} Kxh7 {[%emt 0:00:08]} 17. Nxh4 {[%emt 0:02:08]} Qxh4 {[%emt 0:00:02]} 18. Rc3 {[%emt 0:00:38]} Qe7 {[%emt 0:04:09]} 19. Re3 {[%emt 0:06:48]} Kg8 {[%emt 0:03:25]} 20. Qg4 {[%emt 0:07:04]} f6 {[%emt 0:05:47]} 21. exf6 {[%emt 0:00:21]} Rxf6 {[%emt 0:00:22]} 22. Rfe1 {[%emt 0:00:17]} Re8 {[%emt 0:02:57]} 23. Nb2 {[%emt 0:02:19]} Qf7 {[%emt 0:01:09]} 24. Nd3 {[%emt 0:00:32]} Rg6 {[%emt 0:03:44]} 25. Qe2 {[%emt 0:00:56]} Qf6 {[%emt 0:01:25]} 26. Ne5 {[%emt 0:00:43]} Nxe5 {[%emt 0:00:52]} 27. Rxe5 {[%emt 0:00:09]} Qf4 {[%emt 0:01:37]} 28. Qe3 {[%emt 0:05:38]} Qxe3 {[%emt 0:02:55]} 29. R1xe3 {[%emt 0:08:59]} Rg4 {[%emt 0:05:48]} 30. Rd3 {[%emt 0:01:13]} Rf4 {[%emt 0:01:46]} 31. g3 {[%emt 0:02:19]} Rf5 {[%emt 0:00:51]} 32. Re2 {[%emt 0:05:56]} Kf7 {[%emt 0:04:15]} 33. Rde3 {[%emt 0:00:37]} Kf6 {[%emt 0:04:05]} 34. Kg2 {[%emt 0:06:04]} g5 {[%emt 0:04:27]} 35. f3 {[%emt 0:00:33]} Re7 {[%emt 0:04:00]} 36. b4 {[%emt 0:00:51]} a6 {[%emt 0:00:46]} 37. a4 {[%emt 0:00:37]} Re8 {[%emt 0:02:05]} 38. h3 {[%emt 0:02:29]} h5 {[%emt 0:00:32]} 39. Re5 {[%emt 0:01:00]} Re7 {[%emt 0:02:06]} 40. Kf2 {[%emt 0:04:02]} Rxe5 {[%emt 0:00:59]} 41. Rxe5 {[%emt 0:00:08]} Rh7 {[%emt 0:01:31]} 42. h4 {[%emt 0:00:33]} gxh4 {[%emt 0:00:38]} 43. gxh4 {[%emt 0:00:04]} Rh6 {[%emt 0:00:50]} 44. f4 {[%emt 0:00:56]} Kf7 {[%emt 0:00:53]} 45. Kf3 {[%emt 0:00:13]} Kf6 {[%emt 0:00:31]} 46. f5 {[%emt 0:01:45]} exf5 {[%emt 0:00:29]} 47. Kf4 {[%emt 0:00:07]} Rh7 {[%emt 0:00:35]} 48. Rxf5+ {[%emt 0:00:16]} Kg6 {[%emt 0:00:14]} 49. Rg5+ {[%emt 0:00:23]} Kh6 {[%emt 0:00:02]} 50. Ke5 {[%emt 0:01:52]} Re7+ {[%emt 0:00:11]} 51. Kd6 {[%emt 0:00:04]} Re4 {[%emt 0:00:12]} 52. Kc7 {[%emt 0:00:13]} Rxh4 {[%emt 0:00:10]} 53. Rg1 {[%emt 0:00:19]} Rxd4 {[%emt 0:00:25]} 54. Kxb7 {[%emt 0:00:06]} Rxb4+ {[%emt 0:00:10]} 55. Kxc6 {[%emt 0:00:05]} d4 {[%emt 0:01:25]} 56. Kd5 {[%emt 0:00:22]} Rxa4 {[%emt 0:00:59]} 57. c6 {[%emt 0:00:08]} Ra2 {[%emt 0:00:41]} 58. Rd1 {[%emt 0:00:48]} d3 {[%emt 0:01:03]} 59. Rxd3 {[%emt 0:00:11]} Rc2 {[%emt 0:00:11]} 60. Rd4 {[%emt 0:00:22]} Kg5 {[%emt 0:00:38]} 61. Rc4 {[%emt 0:00:40]} Rd2+ {[%emt 0:00:08]} 62. Kc5 {[%emt 0:00:12]} Rd8 {[%emt 0:00:15]} 63. c7 {[%emt 0:01:25]} Rc8 {[%emt 0:00:01]} 64. Kb6 {[%emt 0:00:10]} h4 {[%emt 0:00:10]} 65. Kxa6 {[%emt 0:01:41]} h3 {[%emt 0:00:10]} 66. Kb7 {[%emt 0:00:23]} Rxc7+ {[%emt 0:00:11]} 67. Rxc7 {[%emt 0:00:32]} Kg4 {[%emt 0:00:13]} 68. Rh7 {[%emt 0:01:06]} Kg3 {[%emt 0:00:07]} 69. Kc6 {[%emt 0:00:42]} h2 {[%emt 0:00:16]} 70. Kd5 {[%emt 0:00:14]} Kg2 71. Rxh2+ {[%emt 0:00:41]} Kxh2 1/2-1/2

[Event "ESP-chT 2nd Division 2019"]
[Site "Linares"]
[Date "2019.08.22"]
[Round "6.40"]
[White "Castellet Menchon, Cora"]
[Black "Estevez Sacristan, Deva"]
[Result "0-1"]
[ECO "A80"]
[WhiteElo "1866"]
[BlackElo "1957"]
[Annotator "NA"]
[PlyCount "64"]
[EventDate "2019.08.19"]
[EventType "team-tourn"]
[EventCountry "ESP"]
[SourceTitle "playchess.com"]
[Source "ChessBase"]
[SourceQuality "1"]
[TimeControl "5400+30"]

1. d4 {[%emt 0:00:00]} f5 {[%emt 0:00:00]} 2. Nc3 {[%emt 0:00:00]} g6 {[%emt 0:00:21]} 3. e4 {[%emt 0:04:08]} fxe4 {[%emt 0:00:48]} 4. Nxe4 {[%emt 0:00:13]} Bg7 {[%emt 0:00:46]} 5. Nf3 {[%emt 0:09:53]} d5 {[%emt 0:02:13]} 6. Nc5 b6 {[%emt 0:00:37]} 7. Nd3 {[%emt 0:10:47]} Nh6 {[%emt 0:01:07]} 8. Bf4 {[%emt 0:02:26]} Nf7 {[%emt 0:06:00]} 9. h4 {[%emt 0:10:02]} Bg4 {[%emt 0:03:57]} 10. c3 {[%emt 0:01:05]} O-O {[%emt 0:02:51]} 11. Be2 {[%emt 0:02:45]} Nd7 {[%emt 0:07:29]} 12. Ng5 {[%emt 0:03:17]} Bf5 {[%emt 0:09:24]} 13. g4 {[%emt 0:16:10]} Bxd3 {[%emt 0:00:38]} 14. Bxd3 {[%emt 0:02:57]} e5 {[%emt 0:04:34]} 15. Ne6 {[%emt 0:04:50]} Qe7 {[%emt 0:01:22]} 16. Nxf8 {[%emt 0:02:32]} exf4+ {[%emt 0:00:18]} 17. Kd2 {[%emt 0:01:57]} Rxf8 {[%emt 0:01:58]} 18. Qf3 {[%emt 0:02:35]} Qd6 {[%emt 0:03:16]} 19. g5 {[%emt 0:05:04]} c5 {[%emt 0:02:21]} 20. dxc5 {[%emt 0:05:28]} Nxc5 {[%emt 0:02:07]} 21. Bf1 {[%emt 0:02:30]} Ne5 {[%emt 0:01:30]} 22. Qg2 {[%emt 0:02:45]} Ne4+ {[%emt 0:00:47]} 23. Kc2 {[%emt 0:00:37]} Qc5 {[%emt 0:03:02]} 24. f3 {[%emt 0:03:43]} Ng3 {[%emt 0:01:06]} 25. Rh3 {[%emt 0:00:58]} Nxf1 {[%emt 0:03:13]} 26. Rxf1 {[%emt 0:01:51]} Nc4 {[%emt 0:00:23]} 27. Qe2 {[%emt 0:01:33]} Ne3+ {[%emt 0:00:26]} 28. Kb1 {[%emt 0:00:57]} Nxf1 {[%emt 0:00:25]} 29. Qe6+ Kh8 {[%emt 0:01:20]} 30. h5 {[%emt 0:00:55]} gxh5 {[%emt 0:04:01]} 31. Rxh5 {[%emt 0:01:16]} Qc8 {[%emt 0:00:40]} 32. Qxd5 {[%emt 0:01:36]} Qf5+ {[%emt 0:00:11]} 0-1

[Event "ESP-chT 2nd Division 2019"]
[Site "Linares"]
[Date "2019.08.23"]
[Round "7.1"]
[White "Suarez Gomez, Julio"]
[Black "Rios, Cristhian Camilo"]
[Result "1-0"]
[ECO "D05"]
[WhiteElo "2433"]
[BlackElo "2530"]
[Annotator "ChessBase"]
[PlyCount "139"]
[EventDate "2019.08.19"]
[EventType "team-tourn"]
[EventCountry "ESP"]
[SourceTitle "playchess.com"]
[Source "ChessBase"]
[SourceQuality "1"]
[TimeControl "5400+30"]

1. d4 {[%emt 0:00:12]} d5 {[%emt 0:00:00]} 2. Nf3 {[%emt 0:00:07]} Nf6 {[%emt 0:00:00]} 3. e3 {[%emt 0:00:24]} e6 {[%emt 0:00:00]} 4. c4 {[%emt 0:00:09]} a6 {[%emt 0:00:00]} 5. b3 {[%emt 0:01:24]} b6 {[%emt 0:01:12]} 6. cxd5 {[%emt 0:00:28]} exd5 {[%emt 0:00:06]} 7. Bb2 {[%emt 0:00:40]} Bd6 {[%emt 0:00:13]} 8. g3 {[%emt 0:00:50]} O-O {[%emt 0:00:37]} 9. Bg2 {[%emt 0:00:07]} Re8 {[%emt 0:00:19]} 10. O-O {[%emt 0:00:10]} Nbd7 {[%emt 0:00:14]} 11. Nc3 {[%emt 0:00:53]} Bb7 {[%emt 0:00:09]} 12. Re1 {[%emt 0:04:37]} Rc8 {[%emt 0:03:24]} 13. Rc1 {[%emt 0:00:23]} Qe7 {[%emt 0:03:45]} 14. Ne2 {[%emt 0:06:04]} Bb4 {[%emt 0:04:30]} 15. Rf1 {[%emt 0:00:41]} Ba3 {[%emt 0:02:42]} 16. Qc2 {[%emt 0:04:13]} Bd6 {[%emt 0:03:25]} 17. Nf4 {[%emt 0:01:34]} c5 {[%emt 0:03:30]} 18. Qe2 {[%emt 0:08:43]} Ne4 {[%emt 0:08:19]} 19. Rfd1 {[%emt 0:07:01]} Ndf6 {[%emt 0:07:36]} 20. dxc5 {[%emt 0:09:51]} bxc5 {[%emt 0:00:11]} 21. Nd2 {[%emt 0:03:37]} Nxd2 {[%emt 0:10:51]} 22. Bxf6 {[%emt 0:12:35]} Qxf6 {[%emt 0:00:53]} 23. Rxd2 {[%emt 0:00:14]} Bxf4 {[%emt 0:00:07]} 24. gxf4 {[%emt 0:00:06]} Qg6 {[%emt 0:07:04]} 25. Qf3 {[%emt 0:01:42]} Ba8 {[%emt 0:01:56]} 26. Qg3 {[%emt 0:00:29]} Qe6 {[%emt 0:00:06]} 27. h4 {[%emt 0:06:34]} f5 {[%emt 0:05:10]} 28. Rcd1 {[%emt 0:04:16]} Red8 {[%emt 0:00:42]} 29. Bf3 {[%emt 0:00:42]} Rd6 {[%emt 0:00:10]} 30. h5 {[%emt 0:02:19]} a5 {[%emt 0:00:32]} 31. Qg2 {[%emt 0:01:02]} Rcd8 {[%emt 0:00:12]} 32. Rc1 {[%emt 0:02:05]} Qc8 {[%emt 0:14:56]} 33. Rdc2 {[%emt 0:01:59]} c4 {[%emt 0:02:51]} 34. bxc4 {[%emt 0:00:05]} d4 {[%emt 0:00:59]} 35. Bxa8 {[%emt 0:01:22]} Qxa8 {[%emt 0:01:50]} 36. Qxa8 {[%emt 0:00:05]} Rxa8 {[%emt 0:00:06]} 37. Rd2 {[%emt 0:02:47]} d3 {[%emt 0:03:59]} 38. c5 {[%emt 0:00:12]} Rd5 {[%emt 0:00:14]} 39. Rc3 {[%emt 0:00:07]} Rc8 {[%emt 0:00:30]} 40. c6 {[%emt 0:00:04]} g6 {[%emt 0:01:56]} 41. hxg6 {[%emt 0:00:10]} hxg6 {[%emt 0:00:09]} 42. Rdxd3 {[%emt 0:00:29]} Rxd3 {[%emt 0:00:08]} 43. Rxd3 {[%emt 0:00:01]} Rxc6 {[%emt 0:00:10]} 44. Rd5 {[%emt 0:00:06]} a4 {[%emt 0:00:10]} 45. Ra5 {[%emt 0:00:57]} Rc4 {[%emt 0:00:10]} 46. Ra7 {[%emt 0:00:29]} Kf8 {[%emt 0:01:19]} 47. Kf1 {[%emt 0:04:32]} Rc1+ {[%emt 0:00:44]} 48. Kg2 {[%emt 0:00:08]} Rc4 {[%emt 0:00:09]} 49. Kg3 {[%emt 0:00:03]} Ke8 {[%emt 0:00:05]} 50. Kh4 {[%emt 0:00:13]} Rc2 {[%emt 0:00:07]} 51. Rxa4 {[%emt 0:00:07]} Rxf2 {[%emt 0:00:07]} 52. Kg5 {[%emt 0:00:11]} Rg2+ {[%emt 0:00:07]} 53. Kf6 {[%emt 0:00:08]} Kd7 {[%emt 0:01:39]} 54. Rd4+ {[%emt 0:01:07]} Ke8 {[%emt 0:00:15]} 55. a4 {[%emt 0:00:14]} Rg3 {[%emt 0:00:38]} 56. Rd5 {[%emt 0:01:02]} Rg2 {[%emt 0:00:25]} 57. a5 {[%emt 0:00:09]} Rg1 {[%emt 0:00:06]} 58. a6 {[%emt 0:00:23]} Ra1 {[%emt 0:00:06]} 59. Rd6 {[%emt 0:00:55]} Ra3 {[%emt 0:00:07]} 60. Re6+ {[%emt 0:00:43]} Kd7 {[%emt 0:00:07]} 61. Re7+ {[%emt 0:00:15]} Kd6 {[%emt 0:00:56]} 62. a7 {[%emt 0:00:36]} Ra4 {[%emt 0:00:11]} 63. Rg7 {[%emt 0:01:31]} Kd5 {[%emt 0:00:08]} 64. Kxg6 {[%emt 0:00:24]} Ke6 {[%emt 0:00:05]} 65. Kh7 {[%emt 0:01:09]} Kf6 {[%emt 0:00:23]} 66. Kg8 {[%emt 0:00:29]} Ra1 {[%emt 0:00:52]} 67. Rb7 {[%emt 0:00:40]} Ke6 {[%emt 0:00:32]} 68. Kf8 {[%emt 0:00:19]} Rh1 {[%emt 0:00:36]} 69. Rb6+ {[%emt 0:00:17]} Kd7 {[%emt 0:00:06]} 70. Rb8 {[%emt 0:00:15]} 1-0